[Event "Chile Championship Women 2022"]
[Site "Las Condes"]
[Date "2022.02.20"]
[Round "3.3"]
[White "Luna Benalcazar, Gianella"]
[Black "Vildosola Canales, Melany Selena"]
[Result "1/2-1/2"]
[ECO "B33"]
[WhiteElo "1736"]
[BlackElo "1645"]
[Annotator "NA"]
[PlyCount "41"]
[EventDate "2022.02.18"]
[EventType "tourn"]
[EventCountry "CHI"]
[SourceTitle "playchess.com"]
[Source "ChessBase"]
[SourceQuality "1"]
[TimeControl "5400+30"]

1. e4 {[%emt 0:03:34]} c5 {[%emt 0:00:17]} 2. Nf3 {[%emt 0:00:27]} Nc6 {[%emt 0:00:07]} 3. d4 {[%emt 0:00:05]} cxd4 {[%emt 0:00:05]} 4. Nxd4 {[%emt 0:00:05]} Nf6 {[%emt 0:00:04]} 5. Nc3 {[%emt 0:00:07]} e5 {[%emt 0:00:03]} 6. Ndb5 {[%emt 0:00:21]} d6 {[%emt 0:00:09]} 7. Bg5 {[%emt 0:00:18]} a6 {[%emt 0:00:07]} 8. Na3 {[%emt 0:01:53]} b5 {[%emt 0:00:05]} 9. Bxf6 {[%emt 0:00:09]} gxf6 {[%emt 0:00:10]} 10. Nd5 {[%emt 0:00:08]} Bg7 {[%emt 0:00:04]} 11. g3 {[%emt 0:00:28]} Ne7 {[%emt 0:02:52]} 12. Nxe7 {[%emt 0:03:36]} Qxe7 {[%emt 0:01:58]} 13. c4 {[%emt 0:03:08]} f5 {[%emt 0:40:33]} 14. cxb5 {[%emt 0:10:06]} O-O {[%emt 0:16:24]} 15. Bg2 {[%emt 0:23:21]} Bb7 {[%emt 0:13:52]} 16. Qe2 {[%emt 0:23:28]} fxe4 {[%emt 0:04:07]} 17. Bxe4 {[%emt 0:04:36]} d5 {[%emt 0:02:13]} 18. Bf5 {[%emt 0:01:02]} Qb4+ {[%emt 0:06:23]} 19. Qd2 {[%emt 0:03:00]} Qxd2+ {[%emt 0:00:36]} 20. Kxd2 {[%emt 0:00:01]} e4 {[%emt 0:00:27]} 21. Rab1 {[%emt 0:07:56]} 1/2-1/2

[Event "Chile Championship Women 2022"]
[Site "Las Condes"]
[Date "2022.02.21"]
[Round "4.1"]
[White "Lemus Pena, Macarena"]
[Black "Reyes Jara, Paula"]
[Result "1/2-1/2"]
[ECO "A34"]
[WhiteElo "1703"]
[BlackElo "1880"]
[Annotator "NA RC"]
[PlyCount "118"]
[EventDate "2022.02.18"]
[EventType "tourn"]
[EventCountry "CHI"]
[SourceTitle "playchess.com"]
[Source "ChessBase"]
[SourceQuality "1"]
[TimeControl "5400+30"]

1. Nf3 {[%emt 0:06:11]} Nf6 {[%emt 0:12:19]} 2. c4 {[%emt 0:01:15]} c5 {[%emt 0:00:26]} 3. Nc3 {[%emt 0:00:29]} Nc6 {[%emt 0:01:34]} 4. g3 {[%emt 0:00:16]} d5 {[%emt 0:01:02]} 5. cxd5 {[%emt 0:01:39]} Nxd5 {[%emt 0:00:21]} 6. Bg2 {[%emt 0:00:17]} Nc7 {[%emt 0:00:33]} 7. O-O {[%emt 0:02:59]} e5 {[%emt 0:03:04]} 8. d3 {[%emt 0:00:35]} Be7 {[%emt 0:07:39]} 9. Be3 {[%emt 0:04:33]} Rb8 {[%emt 0:13:53]} 10. a3 {[%emt 0:08:47]} O-O {[%emt 0:05:43]} 11. Qc2 {[%emt 0:01:31]} Nd4 {[%emt 0:06:33]} 12. Bxd4 {[%emt 0:04:36]} exd4 {[%emt 0:04:09]} 13. Ne4 {[%emt 0:03:20]} b6 {[%emt 0:00:22]} 14. Rfc1 {[%emt 0:08:18]} Ne6 {[%emt 0:03:50]} 15. Ned2 {[%emt 0:05:14]} Bb7 {[%emt 0:02:33]} 16. a4 {[%emt 0:09:23]} Re8 {[%emt 0:02:17]} 17. Ne5 {[%emt 0:05:54]} Bxg2 {[%emt 0:02:48]} 18. Kxg2 {[%emt 0:00:08]} Qd5+ {[%emt 0:00:05]} 19. Nef3 {[%emt 0:04:25]} Bg5 {[%emt 0:06:07]} 20. h4 {[%emt 0:07:21] [#]} Bxh4 $1 {[%emt 0:04:58]} 21. Rh1 {[%emt 0:09:19]} Bd8 {[%emt 0:01:00]} 22. Qc4 {[%emt 0:02:40]} Nc7 {[%emt 0:02:02]} 23. Rae1 {[%emt 0:01:12]} h6 {[%emt 0:03:11]} 24. Qxd5 {[%emt 0:03:10]} Nxd5 {[%emt 0:00:07]} 25. Rh5 {[%emt 0:00:12]} Nb4 {[%emt 0:01:52]} 26. Kf1 {[%emt 0:00:08]} Rb7 {[%emt 0:01:40]} 27. Nc4 {[%emt 0:02:24]} Re6 {[%emt 0:00:44]} 28. Re5 {[%emt 0:01:44]} Rbe7 {[%emt 0:01:09]} 29. Rc1 {[%emt 0:00:51]} Rxe5 {[%emt 0:02:28]} 30. Ncxe5 {[%emt 0:00:19]} Bc7 {[%emt 0:01:25]} 31. Nc4 {[%emt 0:00:10]} f5 {[%emt 0:02:35]} 32. Na3 {[%emt 0:01:16]} a6 {[%emt 0:01:11]} (32... a5 $17 33. Nb5 Be5 34. Nxe5 Rxe5) 33. a5 $1 {[%emt 0:00:44]} Kf7 $1 {[%emt 0:03:44]} 34. Rc4 {[%emt 0:01:28]} Nc6 {[%emt 0:00:17]} 35. axb6 {[%emt 0:00:38]} Bxb6 {[%emt 0:00:02]} 36. Rc1 {[%emt 0:01:53]} Ke6 {[%emt 0:00:41]} 37. Nc4 {[%emt 0:00:32]} Bc7 {[%emt 0:00:31]} 38. Ra1 {[%emt 0:00:38]} ({White should try} 38. Nfd2 $15) 38... Nb8 {[%emt 0:00:02]} (38... Nb4 $17) 39. Nfd2 {[%emt 0:01:11]} (39. b4 $1 $11) 39... Kd5 {[%emt 0:00:13]} 40. Ra3 {[%emt 0:00:32]} g5 {[%emt 0:02:00]} 41. Ra4 {[%emt 0:00:42]} Bd8 {[%emt 0:00:55]} 42. b4 {[%emt 0:01:17]} Rb7 {[%emt 0:00:19]} 43. bxc5 {[%emt 0:00:20]} Kxc5 {[%emt 0:00:21]} 44. Na5 {[%emt 0:00:21]} Bxa5 {[%emt 0:00:18]} 45. Rxa5+ {[%emt 0:00:06]} Rb5 {[%emt 0:00:14]} 46. Ra4 {[%emt 0:00:15]} a5 {[%emt 0:01:31]} 47. Ke1 {[%emt 0:01:40]} Nc6 {[%emt 0:00:30]} 48. Kd1 {[%emt 0:00:40]} Rb4 {[%emt 0:01:06]} 49. Ra1 {[%emt 0:00:04]} a4 {[%emt 0:00:44]} 50. Nc4 {[%emt 0:00:26]} Ne7 {[%emt 0:01:10]} 51. Na3 {[%emt 0:00:28] [#]} Nd5 $1 {[%emt 0:00:19]} 52. Nc2 {[%emt 0:00:28]} Nc3+ {[%emt 0:00:13]} 53. Kd2 {[%emt 0:00:48]} (53. Kc1 {is the only way for White.} Rb6 54. e3) 53... Rb3 {[%emt 0:01:03]} 54. e3 {[%emt 0:00:13]} dxe3+ {[%emt 0:00:06]} 55. fxe3 {[%emt 0:00:10]} Nb1+ {[%emt 0:01:16]} 56. Kc1 $1 {[%emt 0:00:10]} Nc3 {[%emt 0:00:03]} 57. Kd2 {[%emt 0:00:05]} Nb1+ {[%emt 0:00:31]} 58. Kc1 {[%emt 0:00:05]} Nc3 {[%emt 0:00:06]} 59. Kd2 {[%emt 0:03:30]} Kd5 $11 {[%emt 0:02:05]} 1/2-1/2

[Event "Chile Championship Women 2022"]
[Site "Las Condes"]
[Date "2022.02.20"]
[Round "4.2"]
[White "Vildosola Canales, Melany Selena"]
[Black "Gomez Barrera, Javiera Belen"]
[Result "0-1"]
[ECO "B90"]
[WhiteElo "1645"]
[BlackElo "2199"]
[Annotator "ChessBase"]
[PlyCount "64"]
[EventDate "2022.02.18"]
[EventType "tourn"]
[EventCountry "CHI"]
[SourceTitle "playchess.com"]
[Source "ChessBase"]
[SourceQuality "1"]
[TimeControl "5400+30"]

1. e4 {[%emt 0:00:29]} c5 {[%emt 0:00:12]} 2. Nf3 {[%emt 0:00:06]} d6 {[%emt 0:00:15]} 3. d4 {[%emt 0:00:12]} cxd4 {[%emt 0:00:02]} 4. Nxd4 {[%emt 0:00:08]} Nf6 {[%emt 0:00:08]} 5. Nc3 {[%emt 0:00:15]} a6 {[%emt 0:00:15]} 6. f3 {[%emt 0:00:32]} e5 {[%emt 0:00:32]} 7. Nb3 {[%emt 0:00:11]} Be7 {[%emt 0:00:14]} 8. Be3 {[%emt 0:00:11]} Be6 {[%emt 0:00:19]} 9. Qd2 {[%emt 0:00:31]} h5 {[%emt 0:00:17]} 10. O-O-O {[%emt 0:01:38]} Nbd7 {[%emt 0:00:19]} 11. f4 {[%emt 0:05:23]} Ng4 {[%emt 0:03:27]} 12. Kb1 {[%emt 0:04:13]} Nxe3 {[%emt 0:23:58]} 13. Qxe3 {[%emt 0:00:38]} Qb6 {[%emt 0:18:11]} 14. Qg3 {[%emt 0:10:45]} h4 {[%emt 0:08:04]} 15. Qf3 {[%emt 0:03:41]} Nf6 {[%emt 0:03:51]} 16. f5 {[%emt 0:03:59]} Bd7 {[%emt 0:00:22]} 17. Bc4 {[%emt 0:01:53]} Qc7 {[%emt 0:03:00]} 18. Bd5 {[%emt 0:02:39]} Rc8 {[%emt 0:01:45]} 19. Qf2 {[%emt 0:08:32]} b5 {[%emt 0:02:34]} 20. Rd2 {[%emt 0:06:36]} b4 {[%emt 0:04:09]} 21. Nd1 {[%emt 0:06:49]} Nxd5 {[%emt 0:00:26]} 22. exd5 {[%emt 0:08:40]} Bg5 {[%emt 0:02:07]} 23. Re2 {[%emt 0:05:46]} Kf8 {[%emt 0:05:43]} 24. Qf3 {[%emt 0:06:16]} a5 {[%emt 0:06:40]} 25. Nf2 {[%emt 0:05:34]} Bb5 {[%emt 0:04:32]} 26. Nd3 {[%emt 0:01:07]} a4 {[%emt 0:03:20]} 27. Nbc1 {[%emt 0:01:06]} a3 {[%emt 0:00:54]} 28. Nb3 {[%emt 0:06:16]} axb2 {[%emt 0:01:53]} 29. Qe4 {[%emt 0:03:47]} Bc4 {[%emt 0:01:16]} 30. Rf2 {[%emt 0:03:19]} Qa7 {[%emt 0:00:48]} 31. Rf3 {[%emt 0:02:28]} Bxd3 {[%emt 0:01:21]} 32. Qxd3 {[%emt 0:00:49]} Ra8 {[%emt 0:00:05]} 0-1

[Event "Chile Championship Women 2022"]
[Site "Las Condes"]
[Date "2022.02.20"]
[Round "4.3"]
[White "Toro Pradenas, Maria Jose"]
[Black "Luna Benalcazar, Gianella"]
[Result "1/2-1/2"]
[ECO "D94"]
[WhiteElo "1979"]
[BlackElo "1736"]
[Annotator "ChessBase"]
[PlyCount "48"]
[EventDate "2022.02.18"]
[EventType "tourn"]
[EventCountry "CHI"]
[SourceTitle "playchess.com"]
[Source "ChessBase"]
[SourceQuality "1"]
[TimeControl "5400+30"]

1. e4 {[%emt 0:02:06]} c6 {[%emt 0:00:07]} 2. d4 {[%emt 0:00:32]} d5 {[%emt 0:00:05]} 3. exd5 {[%emt 0:01:37]} cxd5 {[%emt 0:00:09]} 4. c4 {[%emt 0:00:16]} Nf6 {[%emt 0:00:05]} 5. Nc3 {[%emt 0:00:09]} g6 {[%emt 0:00:07]} 6. Nf3 {[%emt 0:04:06]} Bg7 {[%emt 0:00:38]} 7. Bd3 {[%emt 0:10:12]} O-O {[%emt 0:01:12]} 8. h3 {[%emt 0:01:36]} a6 {[%emt 0:06:26]} 9. O-O {[%emt 0:09:34]} Nbd7 {[%emt 0:04:24]} 10. Qe2 {[%emt 0:11:04]} dxc4 {[%emt 0:10:50]} 11. Bxc4 {[%emt 0:00:05]} b5 {[%emt 0:01:42]} 12. Bb3 {[%emt 0:03:13]} Nb6 {[%emt 0:03:10]} 13. Bg5 {[%emt 0:09:19]} Bb7 {[%emt 0:08:36]} 14. Rad1 {[%emt 0:02:05]} b4 {[%emt 0:06:20]} 15. Na4 {[%emt 0:02:56]} Nxa4 {[%emt 0:09:15]} 16. Bxa4 {[%emt 0:00:06]} Qa5 {[%emt 0:00:50]} 17. Bxf6 {[%emt 0:04:37]} Bxf6 {[%emt 0:04:28]} 18. Bb3 {[%emt 0:03:02]} Qh5 {[%emt 0:01:08]} 19. d5 {[%emt 0:02:46]} Rfd8 {[%emt 0:01:49]} 20. Kh2 {[%emt 0:05:32]} Qh6 {[%emt 0:06:58]} 21. Qe4 {[%emt 0:12:44]} a5 {[%emt 0:04:00]} 22. Ne5 {[%emt 0:01:44]} Rd6 {[%emt 0:16:03]} 23. Nc4 {[%emt 0:05:04]} Rdd8 {[%emt 0:00:22]} 24. Ne5 {[%emt 0:08:05]} Rd6 {[%emt 0:13:46]} 1/2-1/2

[Event "Chile Championship Women 2022"]
[Site "Las Condes"]
[Date "2022.02.20"]
[Round "4.4"]
[White "Araos Diaz, Constanza Paz"]
[Black "Fuentes Inzunza, Lesly"]
[Result "0-1"]
[ECO "D00"]
[WhiteElo "1435"]
[BlackElo "1816"]
[Annotator "NA"]
[PlyCount "120"]
[EventDate "2022.02.18"]
[EventType "tourn"]
[EventCountry "CHI"]
[SourceTitle "playchess.com"]
[Source "ChessBase"]
[SourceQuality "1"]
[TimeControl "5400+30"]

1. d4 {[%emt 1:31:00]} d5 {[%emt 0:02:01]} 2. Bf4 {[%emt 0:00:00]} Nf6 {[%emt 0:00:46]} 3. e3 {[%emt 0:00:00]} c5 {[%emt 0:00:42]} 4. c3 {[%emt 0:00:00]} Nc6 {[%emt 0:01:11]} 5. Bd3 {[%emt 0:00:00]} Bg4 {[%emt 0:05:59]} 6. Be2 {[%emt 0:00:00]} Bxe2 {[%emt 0:02:18]} 7. Qxe2 {[%emt 0:00:00]} e6 {[%emt 0:00:55]} 8. Nd2 {[%emt 0:00:00]} cxd4 {[%emt 0:05:36]} 9. exd4 {[%emt 0:00:00]} Bd6 {[%emt 0:01:06]} 10. Bxd6 {[%emt 0:00:00]} Qxd6 {[%emt 0:00:08]} 11. Ngf3 {[%emt 0:05:00]} O-O {[%emt 0:00:59]} 12. O-O {[%emt 0:00:00]} h6 {[%emt 0:12:17]} 13. Ne5 {[%emt 0:00:00]} b5 {[%emt 0:03:52]} 14. Nxc6 {[%emt 0:00:00]} Qxc6 {[%emt 0:03:21]} 15. Rac1 {[%emt 0:00:00]} a5 {[%emt 0:01:54]} 16. Nf3 {[%emt 0:00:00]} Qc4 {[%emt 0:11:58]} 17. Qxc4 {[%emt 0:00:00]} bxc4 {[%emt 0:10:51]} 18. Nd2 {[%emt 0:00:00]} a4 {[%emt 0:03:48]} 19. b3 {[%emt 0:00:00]} axb3 {[%emt 0:06:12]} 20. axb3 {[%emt 0:00:00]} Ra2 {[%emt 0:00:52]} 21. Rfd1 {[%emt 0:00:00]} cxb3 {[%emt 0:03:47]} 22. Nxb3 {[%emt 0:00:00]} Ne4 {[%emt 0:01:00]} 23. f3 {[%emt 0:00:00]} Nd6 {[%emt 0:01:36]} 24. Rd2 {[%emt 0:00:00]} Rxd2 {[%emt 0:03:51]} 25. Nxd2 {[%emt 0:00:00]} Rc8 {[%emt 0:00:26]} 26. Kf2 {[%emt 0:00:00]} Nb5 {[%emt 0:01:37]} 27. Ke3 {[%emt 0:00:00]} Rxc3+ {[%emt 0:00:37]} 28. Rxc3 {[%emt 0:00:00]} Nxc3 {[%emt 0:00:05]} 29. Nb3 {[%emt 0:00:00]} Kf8 {[%emt 0:00:46]} 30. Kd2 {[%emt 0:00:00]} Nb5 {[%emt 0:00:23]} 31. Kd3 {[%emt 0:00:00]} Ke7 {[%emt 0:00:30]} 32. g3 {[%emt 0:00:00]} g5 {[%emt 0:04:28]} 33. h3 {[%emt 0:00:00]} h5 {[%emt 0:00:15]} 34. Nc1 {[%emt 0:00:00]} Kf6 {[%emt 0:02:29]} 35. Ne2 {[%emt 0:00:00]} Kg6 {[%emt 0:02:22]} 36. Ke3 {[%emt 0:00:00]} Nd6 {[%emt 0:00:13]} 37. f4 {[%emt 0:00:00]} g4 {[%emt 0:01:28]} 38. h4 {[%emt 0:00:00]} Nf5+ {[%emt 0:00:26]} 39. Kd3 {[%emt 0:00:00]} Kf6 {[%emt 0:00:17]} 40. Kd2 {[%emt 0:00:00]} Ke7 {[%emt 0:00:11]} 41. Kd3 {[%emt 0:00:00]} Kd6 {[%emt 0:00:01]} 42. Kc3 {[%emt 0:00:02]} f6 {[%emt 0:01:37]} 43. Kd3 {[%emt 0:05:34]} Kc6 {[%emt 0:00:21]} 44. Kc3 {[%emt 0:00:10]} Kd6 {[%emt 0:01:18]} 45. Kd3 {[%emt 0:01:35]} Kc7 {[%emt 0:00:19]} 46. Kc3 {[%emt 0:00:43]} Kc6 {[%emt 0:00:41]} 47. Kb4 {[%emt 0:00:45]} Kd6 {[%emt 0:02:33]} 48. Kc3 {[%emt 0:00:31]} e5 {[%emt 0:00:16]} 49. fxe5+ {[%emt 0:01:07]} fxe5 {[%emt 0:00:09]} 50. dxe5+ {[%emt 0:01:34]} Kxe5 {[%emt 0:00:02]} 51. Kd3 {[%emt 0:00:55]} d4 {[%emt 0:00:30]} 52. Nf4 {[%emt 0:01:48]} Nxg3 {[%emt 0:00:52]} 53. Ng2 {[%emt 0:00:03]} Nf5 {[%emt 0:00:30]} 54. Ke2 {[%emt 0:00:35]} Ke4 {[%emt 0:00:16]} 55. Kf2 {[%emt 0:02:49]} d3 {[%emt 0:00:36]} 56. Kf1 {[%emt 0:00:29]} Ne3+ {[%emt 0:00:15]} 57. Nxe3 {[%emt 0:00:23]} Kxe3 {[%emt 0:00:08]} 58. Ke1 {[%emt 0:00:03]} g3 {[%emt 0:00:12]} 59. Kd1 {[%emt 0:00:13]} g2 {[%emt 0:00:26]} 60. Ke1 {[%emt 0:00:03]} g1=R# {[%emt 0:01:23]} 0-1

[Event "Chile Championship Women 2022"]
[Site "Las Condes"]
[Date "2022.02.20"]
[Round "4.5"]
[White "Rozas Lazcano, Valeska"]
[Black "Sanchez Tobar, Francisca Valentina"]
[Result "1/2-1/2"]
[ECO "C77"]
[WhiteElo "1456"]
[BlackElo "1837"]
[Annotator "NA RC"]
[PlyCount "115"]
[EventDate "2022.02.18"]
[EventType "tourn"]
[EventCountry "CHI"]
[SourceTitle "playchess.com"]
[Source "ChessBase"]
[SourceQuality "1"]
[TimeControl "5400+30"]

1. e4 {[%emt 0:01:29]} e5 {[%emt 0:00:15]} 2. Nf3 {[%emt 0:00:14]} Nc6 {[%emt 0:00:12]} 3. Bb5 {[%emt 0:00:59]} a6 {[%emt 0:02:24]} 4. Ba4 {[%emt 0:00:16]} Nf6 {[%emt 0:00:26]} 5. d3 {[%emt 0:00:07]} b5 {[%emt 0:00:45]} 6. Bb3 {[%emt 0:00:06]} Bc5 {[%emt 0:01:17]} 7. h3 {[%emt 0:00:57] 7.c3 is the modern continuation.} h6 {[%emt 0:01:10]} 8. c3 {[%emt 0:00:20]} Bb6 {[%emt 0:00:37] [#]} 9. Be3 $146 {[%emt 0:01:24]} ({Predecessor:} 9. Nbd2 d6 10. Nf1 Be6 11. Bxe6 fxe6 12. Ne3 Ne7 13. O-O Ng6 14. Qc2 Qd7 15. d4 exd4 16. cxd4 {1-0 (50) Tabola,M (1800)-Sosnowska,A Krynica 2003}) 9... Rb8 {[%emt 0:03:27]} 10. Nbd2 {[%emt 0:04:59]} d6 {[%emt 0:00:33]} 11. a4 {[%emt 0:05:29]} O-O {[%emt 0:07:57]} 12. O-O {[%emt 0:01:09]} Ne7 {[%emt 0:00:23]} 13. a5 {[%emt 0:05:38]} Bxe3 {[%emt 0:01:30]} 14. fxe3 {[%emt 0:00:07]} Ng6 {[%emt 0:00:36]} 15. Bc2 {[%emt 0:03:47]} d5 {[%emt 0:09:04]} 16. d4 {[%emt 0:09:23]} dxe4 {[%emt 0:09:48]} 17. Nxe4 {[%emt 0:08:03]} Nd5 {[%emt 0:04:57]} 18. Qd2 {[%emt 0:10:19]} f5 {[%emt 0:13:14]} 19. Nc5 {[%emt 0:13:12]} e4 {[%emt 0:01:41]} 20. Nh2 {[%emt 0:12:20]} Kh8 {[%emt 0:09:59]} 21. Bb3 {[%emt 0:01:22]} Rf6 {[%emt 0:06:27]} 22. Qe2 {[%emt 0:04:16]} c6 {[%emt 0:07:15]} 23. Bxd5 {[%emt 0:09:32]} cxd5 {[%emt 0:01:19]} 24. b3 {[%emt 0:01:05]} f4 {[%emt 0:00:41]} 25. Ng4 {[%emt 0:03:14]} Bxg4 {[%emt 0:01:52]} 26. Qxg4 {[%emt 0:01:21]} fxe3 {[%emt 0:11:16]} 27. Rxf6 {[%emt 0:00:45]} Qxf6 {[%emt 0:00:01]} 28. Rf1 {[%emt 0:00:11]} Qg5 {[%emt 0:00:50]} (28... Qd6 $11 {is superior.}) 29. Qxg5 {[%emt 0:00:18]} hxg5 {[%emt 0:00:01]} 30. Re1 {[%emt 0:00:01]} Rc8 {[%emt 0:02:11]} (30... Nf4 $11 {remains equal.}) 31. Rxe3 {[%emt 0:00:14]} Nf4 {[%emt 0:00:33]} 32. Kh2 {[%emt 0:01:11]} ({White should play} 32. Kf2 $14) 32... Rc6 {[%emt 0:00:34]} 33. Kg3 {[%emt 0:01:42]} Rf6 {[%emt 0:00:42]} 34. c4 {[%emt 0:00:53]} dxc4 {[%emt 0:02:39]} 35. bxc4 {[%emt 0:00:10]} bxc4 {[%emt 0:00:15]} 36. Nxe4 {[%emt 0:00:13]} Re6 {[%emt 0:00:30]} 37. Kf3 {[%emt 0:00:45]} Nd5 {[%emt 0:00:02]} 38. Re2 {[%emt 0:00:14]} Rc6 {[%emt 0:00:57]} 39. Nxg5 {[%emt 0:00:42]} g6 {[%emt 0:00:30]} 40. Ne4 {[%emt 0:00:06]} Nb4 {[%emt 0:00:37]} 41. Nc3 {[%emt 0:00:50]} Rd6 {[%emt 0:00:00]} 42. d5 {[%emt 0:00:06]} Nxd5 {[%emt 0:00:22]} 43. Nxd5 {[%emt 0:01:25]} Rxd5 {[%emt 0:00:01]} 44. Rc2 {[%emt 0:00:01]} Rxa5 {[%emt 0:00:19]} 45. Rxc4 {[%emt 0:00:07]} Kg7 {[%emt 0:00:16]} 46. h4 {[%emt 0:00:47]} Ra1 {[%emt 0:00:05]} 47. g4 {[%emt 0:00:32]} a5 {[%emt 0:00:41]} 48. Rc7+ {[%emt 0:00:16]} Kg8 {[%emt 0:01:30]} 49. Rc6 {[%emt 0:00:12]} Kg7 {[%emt 0:00:51]} 50. Rc7+ {[%emt 0:00:05]} Kg8 {[%emt 0:01:08]} 51. Kf4 {[%emt 0:00:12]} a4 {[%emt 0:00:19]} 52. Kg5 {[%emt 0:00:26]} a3 $2 {[%emt 0:00:37]} (52... Rb1 $11) 53. Kxg6 $18 {[%emt 0:00:04]} Kf8 {[%emt 0:00:03]} 54. Ra7 {[%emt 0:00:34]} a2 {[%emt 0:00:13]} 55. h5 {[%emt 0:00:06]} Rg1 {[%emt 0:00:13]} 56. Ra8+ {[%emt 0:01:41]} Ke7 {[%emt 0:00:08]} 57. Rxa2 {[%emt 0:00:19]} Rxg4+ {[%emt 0:00:02]} 58. Kh7 {[%emt 0:00:10]} 1/2-1/2

[Event "Chile Championship Women 2022"]
[Site "Las Condes"]
[Date "2022.02.21"]
[Round "5.1"]
[White "Fuentes Inzunza, Lesly"]
[Black "Rozas Lazcano, Valeska"]
[Result "0-1"]
[ECO "A49"]
[WhiteElo "1816"]
[BlackElo "1456"]
[Annotator "NA"]
[PlyCount "60"]
[EventDate "2022.02.18"]
[EventType "tourn"]
[EventCountry "CHI"]
[SourceTitle "playchess.com"]
[Source "ChessBase"]
[SourceQuality "1"]
[TimeControl "5400+30"]

1. d4 {[%emt 0:02:03]} Nf6 {[%emt 0:00:17]} 2. Nf3 {[%emt 0:00:58]} g6 {[%emt 0:00:11]} 3. g3 {[%emt 0:00:36]} Bg7 {[%emt 0:00:05]} 4. Bg2 {[%emt 0:00:17]} d6 {[%emt 0:00:08]} 5. O-O {[%emt 0:02:10]} O-O {[%emt 0:00:06]} 6. Nbd2 {[%emt 0:02:36]} c5 {[%emt 0:00:41]} 7. c3 {[%emt 0:03:37]} Nc6 {[%emt 0:01:35]} 8. h3 {[%emt 0:01:07]} Rb8 {[%emt 0:03:22]} 9. a4 {[%emt 0:02:58]} a6 {[%emt 0:00:38]} 10. e4 {[%emt 0:01:17]} e6 {[%emt 0:10:29]} 11. Rb1 {[%emt 0:18:35]} b5 {[%emt 0:12:42]} 12. b4 {[%emt 0:09:34]} c4 {[%emt 0:07:25]} 13. a5 {[%emt 0:01:23]} Bb7 {[%emt 0:02:25]} 14. Re1 {[%emt 0:01:51]} Nd7 {[%emt 0:02:21]} 15. Nf1 {[%emt 0:01:51]} h6 {[%emt 0:03:03]} 16. Qc2 {[%emt 0:08:10]} Re8 {[%emt 0:07:02]} 17. Bd2 {[%emt 0:06:38]} Ne7 {[%emt 0:08:53]} 18. Rbd1 {[%emt 0:04:23]} Qc7 {[%emt 0:02:10]} 19. Qc1 {[%emt 0:07:04]} Kh7 {[%emt 0:00:25]} 20. h4 {[%emt 0:01:07]} f5 {[%emt 0:02:26]} 21. exf5 {[%emt 0:05:04]} exf5 {[%emt 0:02:06]} 22. h5 {[%emt 0:10:18]} g5 {[%emt 0:02:54]} 23. N3h2 {[%emt 0:07:03]} Bxg2 {[%emt 0:01:32]} 24. Kxg2 {[%emt 0:00:02]} Nf6 {[%emt 0:00:10]} 25. Qc2 {[%emt 0:00:30]} Qd7 {[%emt 0:03:18]} 26. g4 {[%emt 0:00:32]} Kg8 {[%emt 0:00:41]} 27. gxf5 {[%emt 0:01:24]} Nxf5 {[%emt 0:00:12]} 28. Ng3 {[%emt 0:00:45]} Nh4+ {[%emt 0:02:08]} 29. Kg1 {[%emt 0:00:36]} Qh3 {[%emt 0:00:20]} 30. Rxe8+ {[%emt 0:00:21]} Rxe8 {[%emt 0:00:17]} 0-1

[Event "Chile Championship Women 2022"]
[Site "Las Condes"]
[Date "2022.02.21"]
[Round "5.2"]
[White "Luna Benalcazar, Gianella"]
[Black "Araos Diaz, Constanza Paz"]
[Result "1-0"]
[ECO "B01"]
[WhiteElo "1736"]
[BlackElo "1435"]
[Annotator "NA"]
[PlyCount "63"]
[EventDate "2022.02.18"]
[EventType "tourn"]
[EventCountry "CHI"]
[SourceTitle "playchess.com"]
[Source "ChessBase"]
[SourceQuality "1"]
[TimeControl "5400+30"]

1. e4 {[%emt 0:05:50]} d5 {[%emt 0:00:01]} 2. exd5 {[%emt 0:00:10]} Qxd5 {[%emt 0:00:02]} 3. Nc3 {[%emt 0:00:01]} Qd6 {[%emt 0:00:14]} 4. d4 {[%emt 0:00:09]} Nf6 {[%emt 0:00:05]} 5. Nf3 {[%emt 0:00:16]} Bg4 {[%emt 0:00:10]} 6. h3 {[%emt 0:00:29]} Bxf3 {[%emt 0:00:07]} 7. Qxf3 {[%emt 0:00:06]} c6 {[%emt 0:00:05]} 8. Be3 {[%emt 0:00:12]} e6 {[%emt 0:00:08]} 9. O-O-O {[%emt 0:00:45]} Be7 {[%emt 0:00:47]} 10. Kb1 {[%emt 0:00:09]} O-O {[%emt 0:00:08]} 11. g4 {[%emt 0:00:09]} Nd5 {[%emt 0:00:27]} 12. Ne4 {[%emt 0:03:51]} Qc7 {[%emt 0:00:53]} 13. c4 {[%emt 0:07:10]} Nxe3 {[%emt 0:00:51]} 14. fxe3 {[%emt 0:02:29]} f5 {[%emt 0:11:06]} 15. Nc3 {[%emt 0:04:57]} g6 {[%emt 0:13:19]} 16. h4 {[%emt 0:02:01]} Nd7 {[%emt 0:16:55]} 17. g5 {[%emt 0:06:30]} Nb6 {[%emt 0:05:43]} 18. Qh3 {[%emt 0:09:20]} Kg7 {[%emt 0:02:28]} 19. Be2 {[%emt 0:11:59]} Bb4 {[%emt 0:07:29]} 20. h5 {[%emt 0:06:21]} Rh8 {[%emt 0:00:48]} 21. e4 {[%emt 0:09:23]} Rad8 {[%emt 0:21:11]} 22. c5 {[%emt 0:02:27]} Nd7 {[%emt 0:00:32]} 23. h6+ {[%emt 0:05:59]} Kf7 {[%emt 0:00:12]} 24. exf5 {[%emt 0:00:29]} exf5 {[%emt 0:00:30]} 25. Bc4+ {[%emt 0:00:45]} Kf8 {[%emt 0:01:42]} 26. Rhf1 {[%emt 0:09:45]} Re8 {[%emt 0:02:22]} 27. Ne2 {[%emt 0:02:47]} b5 {[%emt 0:01:24]} 28. Bd3 {[%emt 0:00:18]} Qd8 {[%emt 0:04:57]} 29. Bxf5 {[%emt 0:03:55]} Rxe2 {[%emt 0:02:54]} 30. Bxg6+ {[%emt 0:02:19]} Kg8 {[%emt 0:00:16]} 31. Qb3+ {[%emt 0:00:08]} Re6 {[%emt 0:00:32]} 32. Qxe6# {[%emt 0:00:05]} 1-0